[Event "*** Titled Tuesday Blitz"]
[Site "Chess.com"]
[Date "2020.11.10"]
[Round "6"]
[White "emiliochess"]
[Black "Chessdreamer2020"]
[Result "0-1"]
[WhiteElo "2282"]
[BlackElo "2516"]
[TimeControl "180+1"]
[EndTime "11:10:39 PST"]
[Termination "Chessdreamer2020 won on time"]

1. d4 {[%clk 0:03:00.9]} 1... d6 {[%clk 0:01:40.7]} 2. Bf4 {[%clk 0:03:00.3]}
2... g6 {[%clk 0:01:40.4]} 3. e3 {[%clk 0:03:00]} 3... Bg7 {[%clk 0:01:40.9]} 4.
Nf3 {[%clk 0:03:00.2]} 4... Nd7 {[%clk 0:01:41.5]} 5. h3 {[%clk 0:02:57.7]} 5...
e5 {[%clk 0:01:42]} 6. Bh2 {[%clk 0:02:56.8]} 6... Qe7 {[%clk 0:01:42.4]} 7. Be2
{[%clk 0:02:56.7]} 7... Nh6 {[%clk 0:01:42.9]} 8. c4 {[%clk 0:02:55.4]} 8... O-O
{[%clk 0:01:43.3]} 9. Nc3 {[%clk 0:02:55.3]} 9... f6 {[%clk 0:01:43.7]} 10. b4
{[%clk 0:02:51.1]} 10... Nf7 {[%clk 0:01:43]} 11. Qb3 {[%clk 0:02:49.3]} 11...
Kh8 {[%clk 0:01:42.2]} 12. a4 {[%clk 0:02:49.1]} 12... e4 {[%clk 0:01:38.1]} 13.
Nd2 {[%clk 0:02:48.8]} 13... f5 {[%clk 0:01:38.1]} 14. c5 {[%clk 0:02:47.3]}
14... g5 {[%clk 0:01:33.8]} 15. Nb5 {[%clk 0:02:44.4]} 15... dxc5 {[%clk
0:01:31.3]} 16. Nxc7 {[%clk 0:02:31.2]} 16... cxd4 {[%clk 0:01:29.9]} 17. Nxa8
{[%clk 0:02:30.5]} 17... dxe3 {[%clk 0:01:27.4]} 18. Rd1 {[%clk 0:02:08.2]}
18... exd2+ {[%clk 0:01:24]} 19. Rxd2 {[%clk 0:02:09.1]} 19... f4 {[%clk
0:01:20.5]} 20. O-O {[%clk 0:02:00.1]} 20... Nde5 {[%clk 0:01:19.1]} 21. Bh5
{[%clk 0:01:52.1]} 21... Be6 {[%clk 0:01:16.7]} 22. Qd1 {[%clk 0:01:48.8]} 22...
Rxa8 {[%clk 0:01:15.4]} 23. Re1 {[%clk 0:01:46.1]} 23... Bf5 {[%clk 0:01:11.1]}
24. Rd5 {[%clk 0:01:35.8]} 24... Qxb4 {[%clk 0:01:02.4]} 25. Bxf7 {[%clk
0:01:30]} 25... Nxf7 {[%clk 0:00:54.6]} 26. Rxf5 {[%clk 0:01:30.9]} 26... Ne5
{[%clk 0:00:54.2]} 27. Rxg5 {[%clk 0:01:24.3]} 27... Nd3 {[%clk 0:00:46.8]} 28.
Rf1 {[%clk 0:01:22.3]} 28... Rf8 {[%clk 0:00:30.2]} 29. Qg4 {[%clk 0:01:16.6]}
29... Qd4 {[%clk 0:00:28.3]} 30. Rf5 {[%clk 0:00:58.5]} 30... Nxf2 {[%clk
0:00:18.4]} 31. Rxf8+ {[%clk 0:00:29.3]} 31... Bxf8 {[%clk 0:00:17.9]} 32. Qe2
{[%clk 0:00:21.8]} 32... Bc5 {[%clk 0:00:06.6]} 33. Bxf4 {[%clk 0:00:16.2]}
33... Nxh3+ {[%clk 0:00:03.4]} 34. Kh2 {[%clk 0:00:14.2]} 34... Nxf4 {[%clk
0:00:03]} 35. Rxf4 {[%clk 0:00:12.6]} 35... Bd6 {[%clk 0:00:03.4]} 36. g3 {[%clk
0:00:13.1]} 36... Bxf4 {[%clk 0:00:02.9]} 37. gxf4 {[%clk 0:00:14]} 37... e3
{[%clk 0:00:03.6]} 38. Qg4 {[%clk 0:00:09]} 38... Qd2+ {[%clk 0:00:03.2]} 39.
Kh3 {[%clk 0:00:09]} 39... e2 {[%clk 0:00:02.6]} 40. Qc8+ {[%clk 0:00:07.5]}
40... Kg7 {[%clk 0:00:03.2]} 41. Qxb7+ {[%clk 0:00:07.8]} 41... Kf6 {[%clk
0:00:03.4]} 42. Qc6+ {[%clk 0:00:07.9]} 42... Kf5 {[%clk 0:00:03.7]} 43. Qc8+
{[%clk 0:00:06.9]} 43... Kxf4 {[%clk 0:00:03.4]} 44. Qg4+ {[%clk 0:00:07.5]}
44... Ke3 {[%clk 0:00:03.4]} 45. Qe6+ {[%clk 0:00:07.9]} 45... Kd3 {[%clk
0:00:03.8]} 46. Qf5+ {[%clk 0:00:07.5]} 46... Kc3 {[%clk 0:00:02.9]} 47. Qa5+
{[%clk 0:00:08]} 47... Kc2 {[%clk 0:00:02.7]} 48. Qxa7 {[%clk 0:00:05.5]} 48...
e1=Q {[%clk 0:00:02.2]} 49. Qc5+ {[%clk 0:00:06]} 49... Kd1 {[%clk 0:00:02.5]}
50. Qf5 {[%clk 0:00:04.2]} 50... Qee3+ {[%clk 0:00:02.7]} 51. Kg4 {[%clk
0:00:04.2]} 51... Qdd4+ {[%clk 0:00:03.3]} 52. Kh5 {[%clk 0:00:03.3]} 52... Qee5
{[%clk 0:00:03.9]} 0-1

[Event "*** Titled Tuesday Blitz"]
[Site "Chess.com"]
[Date "2020.11.10"]
[Round "6"]
[White "Slovak_fighter2000"]
[Black "Trickov"]
[Result "0-1"]
[WhiteElo "2448"]
[BlackElo "2343"]
[TimeControl "180+1"]
[EndTime "11:10:39 PST"]
[Termination "Trickov won by resignation"]

1. e4 {[%clk 0:03:00.9]} 1... c5 {[%clk 0:02:56.6]} 2. Nf3 {[%clk 0:02:59.9]}
2... d6 {[%clk 0:02:54.9]} 3. Bb5+ {[%clk 0:02:57.9]} 3... Nd7 {[%clk
0:02:53.8]} 4. c4 {[%clk 0:02:56.4]} 4... a6 {[%clk 0:02:53.1]} 5. Bxd7+ {[%clk
0:02:55.9]} 5... Bxd7 {[%clk 0:02:52.7]} 6. Nc3 {[%clk 0:02:53.1]} 6... Rc8
{[%clk 0:02:50.1]} 7. O-O {[%clk 0:02:50.7]} 7... b5 {[%clk 0:02:49.2]} 8. b3
{[%clk 0:02:47.9]} 8... b4 {[%clk 0:02:46.7]} 9. Ne2 {[%clk 0:02:46.7]} 9... e5
{[%clk 0:02:46.7]} 10. a3 {[%clk 0:02:41.5]} 10... a5 {[%clk 0:02:42.2]} 11.
axb4 {[%clk 0:02:41.4]} 11... axb4 {[%clk 0:02:42.2]} 12. Ng3 {[%clk 0:02:37.6]}
12... Be7 {[%clk 0:02:40.1]} 13. d3 {[%clk 0:02:34.9]} 13... Nf6 {[%clk
0:02:36.7]} 14. h3 {[%clk 0:02:23.5]} 14... O-O {[%clk 0:02:36.1]} 15. Nh2
{[%clk 0:02:23.3]} 15... Be6 {[%clk 0:02:23.5]} 16. Qf3 {[%clk 0:02:17.6]} 16...
Ra8 {[%clk 0:02:07.4]} 17. Bg5 {[%clk 0:02:16]} 17... Ra3 {[%clk 0:01:52]} 18.
Rab1 {[%clk 0:02:15.7]} 18... Nd7 {[%clk 0:01:49.6]} 19. Bxe7 {[%clk 0:02:10.5]}
19... Qxe7 {[%clk 0:01:48.9]} 20. Nf5 {[%clk 0:02:09.5]} 20... Bxf5 {[%clk
0:01:48.5]} 21. Qxf5 {[%clk 0:02:10.4]} 21... Nb8 {[%clk 0:01:43.4]} 22. f4
{[%clk 0:02:07.6]} 22... Nc6 {[%clk 0:01:38.9]} 23. Nf3 {[%clk 0:02:06.2]} 23...
exf4 {[%clk 0:01:33.5]} 24. Qxf4 {[%clk 0:02:05]} 24... Rfa8 {[%clk 0:01:07.4]}
25. Kh2 {[%clk 0:01:48.1]} 25... Ra2 {[%clk 0:01:06.6]} 26. Qg4 {[%clk
0:01:23.8]} 26... Ne5 {[%clk 0:01:03]} 27. Nxe5 {[%clk 0:01:15.4]} 27... Qxe5+
{[%clk 0:01:02.7]} 28. Kh1 {[%clk 0:01:15.9]} 28... Qe6 {[%clk 0:00:57.1]} 29.
Qf3 {[%clk 0:01:13.9]} 29... Rd2 {[%clk 0:00:55.5]} 30. Rbd1 {[%clk 0:01:11.1]}
30... Rxd1 {[%clk 0:00:52.5]} 31. Rxd1 {[%clk 0:01:10.6]} 31... Qe5 {[%clk
0:00:51.1]} 32. Rf1 {[%clk 0:01:07.9]} 32... f6 {[%clk 0:00:50.7]} 33. Qg4
{[%clk 0:01:05.6]} 33... h5 {[%clk 0:00:48.2]} 34. Qd7 {[%clk 0:01:04.8]} 34...
Ra2 {[%clk 0:00:46.6]} 35. Qc8+ {[%clk 0:00:38.7]} 35... Kh7 {[%clk 0:00:45.8]}
36. Qd7 {[%clk 0:00:34.9]} 36... Rd2 {[%clk 0:00:44.7]} 37. Qf5+ {[%clk
0:00:19.2]} 37... Qxf5 {[%clk 0:00:43.9]} 38. Rxf5 {[%clk 0:00:20.1]} 38... Rxd3
{[%clk 0:00:43.9]} 39. Rxh5+ {[%clk 0:00:20]} 39... Kg6 {[%clk 0:00:44]} 40. Rd5
{[%clk 0:00:18]} 40... Rxb3 {[%clk 0:00:43.8]} 41. Rxd6 {[%clk 0:00:17.9]} 41...
Rc3 {[%clk 0:00:44.3]} 42. e5 {[%clk 0:00:18.3]} 42... Rxc4 {[%clk 0:00:43.5]}
43. exf6 {[%clk 0:00:19.2]} 43... gxf6 {[%clk 0:00:43]} 44. Rb6 {[%clk
0:00:19.2]} 44... Rc2 {[%clk 0:00:37.1]} 45. Kh2 {[%clk 0:00:18.2]} 45... Kg5
{[%clk 0:00:34.4]} 46. Kg3 {[%clk 0:00:18.3]} 46... Rc3+ {[%clk 0:00:31.3]} 47.
Kf2 {[%clk 0:00:17.9]} 47... b3 {[%clk 0:00:28.4]} 48. Rb5 {[%clk 0:00:18.3]}
48... Kg6 {[%clk 0:00:26.1]} 49. h4 {[%clk 0:00:15.6]} 49... c4 {[%clk
0:00:26.2]} 50. g4 {[%clk 0:00:15.3]} 50... Rc2+ {[%clk 0:00:23.7]} 51. Ke3
{[%clk 0:00:15.6]} 51... b2 {[%clk 0:00:23.6]} 52. h5+ {[%clk 0:00:13.6]} 52...
Kh6 {[%clk 0:00:22.9]} 53. Rb6 {[%clk 0:00:12.5]} 53... Kg5 {[%clk 0:00:21.8]}
54. h6 {[%clk 0:00:12]} 54... Kxh6 {[%clk 0:00:21.9]} 55. Rxf6+ {[%clk
0:00:11.3]} 55... Kg5 {[%clk 0:00:22.2]} 56. Rb6 {[%clk 0:00:11.9]} 56... c3
{[%clk 0:00:22]} 57. Kd4 {[%clk 0:00:12.8]} 57... Rc1 {[%clk 0:00:21.7]} 0-1

[Event "*** Titled Tuesday Blitz"]
[Site "Chess.com"]
[Date "2020.11.10"]
[Round "6"]
[White "Ave_Mariia"]
[Black "124chess"]
[Result "1-0"]
[WhiteElo "2530"]
[BlackElo "2712"]
[TimeControl "180+1"]
[EndTime "11:10:40 PST"]
[Termination "Ave_Mariia won by resignation"]

1. d4 {[%clk 0:03:00.9]} 1... Nf6 {[%clk 0:02:59.4]} 2. c4 {[%clk 0:03:00.6]}
2... e6 {[%clk 0:03:00]} 3. g3 {[%clk 0:03:00.3]} 3... d5 {[%clk 0:02:59.8]} 4.
Nf3 {[%clk 0:02:59.9]} 4... dxc4 {[%clk 0:03:00]} 5. Bg2 {[%clk 0:03:00]} 5...
a6 {[%clk 0:03:00.2]} 6. O-O {[%clk 0:02:58.6]} 6... Nc6 {[%clk 0:03:00.8]} 7.
e3 {[%clk 0:02:51.3]} 7... Bd7 {[%clk 0:03:01]} 8. Qe2 {[%clk 0:02:08]} 8... b5
{[%clk 0:02:59.8]} 9. b3 {[%clk 0:02:06]} 9... cxb3 {[%clk 0:03:00.7]} 10. axb3
{[%clk 0:02:06.9]} 10... Be7 {[%clk 0:03:00.1]} 11. Nc3 {[%clk 0:02:03.2]} 11...
O-O {[%clk 0:02:59.9]} 12. Rd1 {[%clk 0:02:00.6]} 12... Nb4 {[%clk 0:02:59]} 13.
Ne5 {[%clk 0:01:58.4]} 13... Nfd5 {[%clk 0:02:58.7]} 14. Bd2 {[%clk 0:01:55.3]}
14... Be8 {[%clk 0:02:44.3]} 15. Rdc1 {[%clk 0:01:49.3]} 15... f6 {[%clk
0:02:43.2]} 16. Nxd5 {[%clk 0:01:46.4]} 16... Nxd5 {[%clk 0:02:18.5]} 17. Nc6
{[%clk 0:01:46.1]} 17... Bxc6 {[%clk 0:02:14.9]} 18. Rxc6 {[%clk 0:01:47]} 18...
Qd7 {[%clk 0:02:06.2]} 19. Rcxa6 {[%clk 0:01:46.1]} 19... Rxa6 {[%clk
0:02:06.3]} 20. Rxa6 {[%clk 0:01:47]} 20... c6 {[%clk 0:02:06.3]} 21. Qd1 {[%clk
0:01:38.8]} 21... f5 {[%clk 0:02:00.1]} 22. Qa1 {[%clk 0:01:33.1]} 22... Rc8
{[%clk 0:01:59.5]} 23. e4 {[%clk 0:01:19.7]} 23... fxe4 {[%clk 0:01:58.7]} 24.
Bxe4 {[%clk 0:01:20.6]} 24... Bf6 {[%clk 0:01:55.2]} 25. Be3 {[%clk 0:00:52.2]}
25... c5 {[%clk 0:01:44]} 26. Ra7 {[%clk 0:00:50.7]} 26... Rc7 {[%clk
0:01:43.4]} 27. Rxc7 {[%clk 0:00:47.7]} 27... Nxc7 {[%clk 0:01:39.3]} 28. Qa7
{[%clk 0:00:42.3]} 28... Bxd4 {[%clk 0:01:35.1]} 29. Qb8+ {[%clk 0:00:31.9]}
29... Ne8 {[%clk 0:01:14.5]} 30. Bxd4 {[%clk 0:00:26.7]} 30... cxd4 {[%clk
0:01:15.4]} 31. Bd3 {[%clk 0:00:27.2]} 31... Kf7 {[%clk 0:00:48.4]} 32. Bxb5
{[%clk 0:00:26.5]} 32... Qe7 {[%clk 0:00:48.9]} 33. Qf4+ {[%clk 0:00:23.2]}
33... Nf6 {[%clk 0:00:48.8]} 34. Qxd4 {[%clk 0:00:23]} 34... Qb7 {[%clk
0:00:46.9]} 35. Bc4 {[%clk 0:00:22.4]} 35... Qc6 {[%clk 0:00:44.2]} 36. Qe5
{[%clk 0:00:19.9]} 36... Ke7 {[%clk 0:00:36.4]} 37. h4 {[%clk 0:00:15.9]} 37...
g6 {[%clk 0:00:33.2]} 38. Qg5 {[%clk 0:00:15.3]} 38... Kf7 {[%clk 0:00:32.7]}
39. Qf4 {[%clk 0:00:13.4]} 39... Ke7 {[%clk 0:00:32.3]} 40. b4 {[%clk
0:00:13.6]} 40... Ne4 {[%clk 0:00:28.8]} 41. Bd3 {[%clk 0:00:11.7]} 41... Nd6
{[%clk 0:00:25.3]} 42. Qe5 {[%clk 0:00:10.9]} 42... Nf7 {[%clk 0:00:22.8]} 43.
Qg7 {[%clk 0:00:10.5]} 43... Qd6 {[%clk 0:00:19.4]} 44. Qc3 {[%clk 0:00:08.2]}
44... Ne5 {[%clk 0:00:18.6]} 45. Be4 {[%clk 0:00:08.5]} 45... Nd7 {[%clk
0:00:17.3]} 46. b5 {[%clk 0:00:08]} 46... Nf6 {[%clk 0:00:16.9]} 47. Bc6 {[%clk
0:00:08]} 47... Qd1+ {[%clk 0:00:16.1]} 48. Kg2 {[%clk 0:00:07.9]} 48... Qd6
{[%clk 0:00:14.5]} 49. b6 {[%clk 0:00:08]} 49... Ng4 {[%clk 0:00:10.3]} 50. Bf3
{[%clk 0:00:07.4]} 50... Ne5 {[%clk 0:00:09.6]} 51. b7 {[%clk 0:00:07.3]} 51...
Qb8 {[%clk 0:00:06.7]} 52. Qc8 {[%clk 0:00:07.1]} 52... Nd7 {[%clk 0:00:06.3]}
53. Bc6 {[%clk 0:00:06.8]} 1-0

[Event "*** Titled Tuesday Blitz"]
[Site "Chess.com"]
[Date "2020.11.10"]
[Round "6"]
[White "m_ezat"]
[Black "dpopadic"]
[Result "1-0"]
[WhiteElo "2482"]
[BlackElo "2345"]
[TimeControl "180+1"]
[EndTime "11:10:40 PST"]
[Termination "m_ezat won on time"]

1. d4 {[%clk 0:03:00.9]} 1... Nf6 {[%clk 0:02:59.3]} 2. c4 {[%clk 0:03:00.5]}
2... g6 {[%clk 0:02:59.3]} 3. Nc3 {[%clk 0:03:00.8]} 3... Bg7 {[%clk 0:02:59.3]}
4. e4 {[%clk 0:03:00.9]} 4... d6 {[%clk 0:02:59.9]} 5. Be2 {[%clk 0:03:01.2]}
5... O-O {[%clk 0:03:00.4]} 6. Bg5 {[%clk 0:03:00.8]} 6... h6 {[%clk 0:02:55.2]}
7. Be3 {[%clk 0:02:58.8]} 7... e5 {[%clk 0:02:54.8]} 8. d5 {[%clk 0:02:39.8]}
8... a5 {[%clk 0:02:53.5]} 9. Qd2 {[%clk 0:02:12.8]} 9... Kh7 {[%clk 0:02:52.5]}
10. h4 {[%clk 0:02:09]} 10... h5 {[%clk 0:02:50.7]} 11. f3 {[%clk 0:02:08.4]}
11... Na6 {[%clk 0:02:48.4]} 12. Nh3 {[%clk 0:02:08.2]} 12... Bxh3 {[%clk
0:02:46.7]} 13. Rxh3 {[%clk 0:02:08.7]} 13... c6 {[%clk 0:02:44.1]} 14. Rh1
{[%clk 0:02:08.2]} 14... cxd5 {[%clk 0:02:44.1]} 15. cxd5 {[%clk 0:02:07.5]}
15... Nc5 {[%clk 0:02:29.5]} 16. g4 {[%clk 0:01:59.9]} 16... Rc8 {[%clk
0:02:25.7]} 17. Bg5 {[%clk 0:01:38.2]} 17... Qb6 {[%clk 0:02:21.3]} 18. Bxf6
{[%clk 0:01:30.3]} 18... Bxf6 {[%clk 0:02:20.7]} 19. gxh5 {[%clk 0:01:30.9]}
19... gxh5 {[%clk 0:02:19.1]} 20. f4 {[%clk 0:01:24.8]} 20... Rg8 {[%clk
0:02:09.9]} 21. Bxh5 {[%clk 0:01:10.6]} 21... exf4 {[%clk 0:02:03.4]} 22. Bxf7
{[%clk 0:01:03.7]} 22... Rg3 {[%clk 0:01:59.6]} 23. Be6 {[%clk 0:00:54.9]} 23...
Nd3+ {[%clk 0:01:52.7]} 24. Kf1 {[%clk 0:00:54.8]} 24... Rf8 {[%clk 0:01:37.6]}
25. Bf5+ {[%clk 0:00:53.1]} 25... Kh8 {[%clk 0:01:34.7]} 26. Qe2 {[%clk
0:00:50.8]} 26... f3 {[%clk 0:00:54.2]} 27. Qd2 {[%clk 0:00:47.5]} 27... Bg7
{[%clk 0:00:42.8]} 28. Na4 {[%clk 0:00:36.8]} 28... Qb5 {[%clk 0:00:36.6]} 29.
Nc3 {[%clk 0:00:35.1]} 29... Qxb2 {[%clk 0:00:31.9]} 30. Qxb2 {[%clk 0:00:29.9]}
30... Nxb2 {[%clk 0:00:31.8]} 31. Nb5 {[%clk 0:00:30]} 31... Nc4 {[%clk
0:00:30.1]} 32. Rd1 {[%clk 0:00:27.9]} 32... Ne3+ {[%clk 0:00:29.7]} 33. Kf2
{[%clk 0:00:28.1]} 33... Nxd1+ {[%clk 0:00:26]} 34. Kxg3 {[%clk 0:00:28.2]}
34... Ne3 {[%clk 0:00:24.1]} 35. Nxd6 {[%clk 0:00:18.9]} 35... Be5+ {[%clk
0:00:22]} 36. Kxf3 {[%clk 0:00:18.8]} 36... Nc2 {[%clk 0:00:18.3]} 37. Nxb7
{[%clk 0:00:18.5]} 37... Nd4+ {[%clk 0:00:18.1]} 38. Kg4 {[%clk 0:00:18.7]}
38... Rg8+ {[%clk 0:00:17]} 39. Kh5 {[%clk 0:00:19.3]} 39... Bf6 {[%clk
0:00:13]} 40. Nd6 {[%clk 0:00:17.2]} 40... Be7 {[%clk 0:00:09.9]} 41. Nf7+
{[%clk 0:00:16.8]} 41... Kg7 {[%clk 0:00:10.2]} 42. Ng5 {[%clk 0:00:17.3]} 42...
Nf3 {[%clk 0:00:07.7]} 43. Nxf3 {[%clk 0:00:15.9]} 43... Kf6 {[%clk 0:00:06.8]}
44. Ng5 {[%clk 0:00:15.3]} 44... Ke5 {[%clk 0:00:05.7]} 45. Rc1 {[%clk 0:00:13]}
45... Kf4 {[%clk 0:00:05.2]} 46. Rf1+ {[%clk 0:00:12.1]} 46... Ke5 {[%clk
0:00:04]} 47. Kg4 {[%clk 0:00:11.7]} 47... Rb8 {[%clk 0:00:02.9]} 48. Be6 {[%clk
0:00:12.1]} 48... Rb2 {[%clk 0:00:02.7]} 49. Rf5+ {[%clk 0:00:12.4]} 49... Kd6
{[%clk 0:00:02.4]} 50. Nf7+ {[%clk 0:00:11.3]} 50... Kc5 {[%clk 0:00:01.7]} 51.
d6+ {[%clk 0:00:10]} 1-0

[Event "*** Titled Tuesday Blitz"]
[Site "Chess.com"]
[Date "2020.11.10"]
[Round "6"]
[White "Matols"]
[Black "IngOscarArdila"]
[Result "0-1"]
[WhiteElo "2246"]
[BlackElo "2138"]
[TimeControl "180+1"]
[EndTime "11:10:41 PST"]
[Termination "IngOscarArdila won on time"]

1. d4 {[%clk 0:03:00.9]} 1... Nf6 {[%clk 0:02:59.3]} 2. c4 {[%clk 0:03:00.7]}
2... g6 {[%clk 0:02:58.8]} 3. g3 {[%clk 0:03:00.4]} 3... Bg7 {[%clk 0:02:58.9]}
4. Bg2 {[%clk 0:03:00.2]} 4... d6 {[%clk 0:02:59]} 5. Nc3 {[%clk 0:03:00.2]}
5... O-O {[%clk 0:02:58.6]} 6. Nf3 {[%clk 0:03:00.3]} 6... Nbd7 {[%clk
0:02:58.6]} 7. O-O {[%clk 0:03:00.1]} 7... e5 {[%clk 0:02:58]} 8. e4 {[%clk
0:03:00.2]} 8... exd4 {[%clk 0:02:57]} 9. Nxd4 {[%clk 0:02:59.4]} 9... Re8
{[%clk 0:02:56.8]} 10. h3 {[%clk 0:02:55.5]} 10... Nc5 {[%clk 0:02:56.8]} 11.
Re1 {[%clk 0:02:55]} 11... a5 {[%clk 0:02:52.8]} 12. Ndb5 {[%clk 0:02:49.6]}
12... Bd7 {[%clk 0:02:50.2]} 13. Qc2 {[%clk 0:02:31.1]} 13... Bc6 {[%clk
0:02:47.5]} 14. Bg5 {[%clk 0:02:22.6]} 14... h6 {[%clk 0:02:41.6]} 15. Bd2
{[%clk 0:02:21.3]} 15... Qd7 {[%clk 0:02:39.7]} 16. Rad1 {[%clk 0:02:17.5]}
16... Bxb5 {[%clk 0:02:33.7]} 17. cxb5 {[%clk 0:02:17]} 17... Qe6 {[%clk
0:02:23.1]} 18. Nd5 {[%clk 0:01:50]} 18... Nxd5 {[%clk 0:02:21.3]} 19. exd5
{[%clk 0:01:49.6]} 19... Qd7 {[%clk 0:02:20.4]} 20. Bf1 {[%clk 0:01:35.6]} 20...
b6 {[%clk 0:02:06.7]} 21. b3 {[%clk 0:01:21.3]} 21... Kh7 {[%clk 0:02:04.5]} 22.
a3 {[%clk 0:01:17]} 22... Rxe1 {[%clk 0:01:57.8]} 23. Rxe1 {[%clk 0:01:08.8]}
23... Re8 {[%clk 0:01:57.9]} 24. Rxe8 {[%clk 0:01:05.6]} 24... Qxe8 {[%clk
0:01:57.5]} 25. b4 {[%clk 0:01:05.6]} 25... axb4 {[%clk 0:01:57.2]} 26. axb4
{[%clk 0:01:04.3]} 26... Ne4 {[%clk 0:01:51]} 27. Be3 {[%clk 0:00:58.5]} 27...
Nc3 {[%clk 0:01:39.9]} 28. Bd2 {[%clk 0:00:24.1]} 28... Nxd5 {[%clk 0:01:37.8]}
29. Bc4 {[%clk 0:00:17]} 29... Nf6 {[%clk 0:01:29.8]} 30. Qd3 {[%clk 0:00:15.7]}
30... Qd7 {[%clk 0:01:24.2]} 31. Kg2 {[%clk 0:00:12.5]} 31... d5 {[%clk
0:01:19.9]} 32. Bb3 {[%clk 0:00:10.6]} 32... Qe6 {[%clk 0:01:15.4]} 33. Be3
{[%clk 0:00:09.5]} 33... Kg8 {[%clk 0:01:06.4]} 34. Bf4 {[%clk 0:00:09.3]} 34...
Qd7 {[%clk 0:00:54.1]} 35. Qc2 {[%clk 0:00:08.7]} 35... Qxb5 {[%clk 0:00:48.5]}
36. Qxc7 {[%clk 0:00:06.7]} 36... Qxb4 {[%clk 0:00:47.5]} 37. Qd8+ {[%clk
0:00:06.2]} 37... Qf8 {[%clk 0:00:47.1]} 38. Qxb6 {[%clk 0:00:04.8]} 38... Qe8
{[%clk 0:00:40.1]} 39. Qd4 {[%clk 0:00:03.5]} 39... Qe4+ {[%clk 0:00:38.3]} 40.
Qxe4 {[%clk 0:00:03.4]} 40... dxe4 {[%clk 0:00:38.2]} 41. Kf1 {[%clk 0:00:03.2]}
41... g5 {[%clk 0:00:38.2]} 42. Be3 {[%clk 0:00:03]} 42... Kf8 {[%clk
0:00:36.7]} 43. Ke2 {[%clk 0:00:03.3]} 43... Ke7 {[%clk 0:00:36.4]} 44. Bd4
{[%clk 0:00:03.5]} 44... Ne8 {[%clk 0:00:33.1]} 45. Bxg7 {[%clk 0:00:02.2]}
45... Nxg7 {[%clk 0:00:34]} 46. Ke3 {[%clk 0:00:02.5]} 46... f5 {[%clk
0:00:33.7]} 47. g4 {[%clk 0:00:02.9]} 47... Kf6 {[%clk 0:00:31.6]} 48. gxf5
{[%clk 0:00:02.7]} 48... Nxf5+ {[%clk 0:00:31.9]} 49. Kxe4 {[%clk 0:00:02.5]}
49... Nd6+ {[%clk 0:00:31.9]} 50. Kf3 {[%clk 0:00:02.2]} 50... Nf5 {[%clk
0:00:30.6]} 51. Bc2 {[%clk 0:00:02.2]} 51... Nd4+ {[%clk 0:00:30]} 52. Kg4
{[%clk 0:00:02.6]} 52... Nxc2 {[%clk 0:00:30.9]} 53. Kh5 {[%clk 0:00:02.1]}
53... Kg7 {[%clk 0:00:31.1]} 54. h4 {[%clk 0:00:02.3]} 54... gxh4 {[%clk
0:00:26.2]} 55. Kxh4 {[%clk 0:00:02.6]} 55... Nd4 {[%clk 0:00:27.1]} 56. Kg4
{[%clk 0:00:02.5]} 56... Kg6 {[%clk 0:00:26.7]} 57. Kh4 {[%clk 0:00:02.2]} 57...
Nf5+ {[%clk 0:00:26.5]} 58. Kg4 {[%clk 0:00:02.2]} 58... h5+ {[%clk 0:00:27.4]}
59. Kf4 {[%clk 0:00:02.5]} 59... Kf6 {[%clk 0:00:24.7]} 0-1

[Event "*** Titled Tuesday Blitz"]
[Site "Chess.com"]
[Date "2020.11.10"]
[Round "6"]
[White "natelleka"]
[Black "novocane"]
[Result "0-1"]
[WhiteElo "2153"]
[BlackElo "2285"]
[TimeControl "180+1"]
[EndTime "11:10:42 PST"]
[Termination "novocane won on time"]

1. e4 {[%clk 0:03:00.5]} 1... c5 {[%clk 0:02:59.7]} 2. Nf3 {[%clk 0:03:00.6]}
2... Nc6 {[%clk 0:03:00.2]} 3. d4 {[%clk 0:03:00.6]} 3... cxd4 {[%clk
0:03:01.1]} 4. Nxd4 {[%clk 0:03:01]} 4... e5 {[%clk 0:03:01.9]} 5. Nb5 {[%clk
0:03:01]} 5... d6 {[%clk 0:03:02.5]} 6. c4 {[%clk 0:03:01.3]} 6... Be7 {[%clk
0:03:02.5]} 7. N1c3 {[%clk 0:03:01.2]} 7... a6 {[%clk 0:03:01.2]} 8. Na3 {[%clk
0:03:01]} 8... f5 {[%clk 0:03:02]} 9. exf5 {[%clk 0:02:59.3]} 9... Bxf5 {[%clk
0:03:02.9]} 10. Bd3 {[%clk 0:02:59.8]} 10... Be6 {[%clk 0:03:03.4]} 11. O-O
{[%clk 0:02:59.4]} 11... Nf6 {[%clk 0:03:03.6]} 12. f4 {[%clk 0:02:54]} 12...
exf4 {[%clk 0:02:59.3]} 13. Bxf4 {[%clk 0:02:53.4]} 13... Ne5 {[%clk 0:02:57.9]}
14. Qe2 {[%clk 0:01:55.9]} 14... Bg4 {[%clk 0:02:35.8]} 15. Qe3 {[%clk
0:01:50.4]} 15... O-O {[%clk 0:02:31]} 16. Bxe5 {[%clk 0:01:45.9]} 16... dxe5
{[%clk 0:02:29.4]} 17. h3 {[%clk 0:01:46]} 17... Bh5 {[%clk 0:02:18.3]} 18. Bf5
{[%clk 0:01:42.6]} 18... Qd4 {[%clk 0:02:04.5]} 19. Qxd4 {[%clk 0:01:39]} 19...
exd4 {[%clk 0:02:04.2]} 20. Nd5 {[%clk 0:01:29.4]} 20... Bxa3 {[%clk 0:01:48.9]}
21. bxa3 {[%clk 0:01:27.6]} 21... Nxd5 {[%clk 0:01:33.3]} 22. cxd5 {[%clk
0:01:18.2]} 22... Rad8 {[%clk 0:01:11.3]} 23. Be6+ {[%clk 0:00:54.4]} 23... Bf7
{[%clk 0:00:58.7]} 24. Rxf7 {[%clk 0:00:37]} 24... Rxf7 {[%clk 0:00:57.8]} 25.
Rd1 {[%clk 0:00:35.6]} 25... Kf8 {[%clk 0:00:47.2]} 26. Bxf7 {[%clk 0:00:35]}
26... Kxf7 {[%clk 0:00:48.1]} 27. Rxd4 {[%clk 0:00:35.3]} 27... Kf6 {[%clk
0:00:47.6]} 28. a4 {[%clk 0:00:31]} 28... Ke5 {[%clk 0:00:46.8]} 29. Rb4 {[%clk
0:00:30.9]} 29... Rd7 {[%clk 0:00:41.8]} 30. Rb1 {[%clk 0:00:30.7]} 30... Kxd5
{[%clk 0:00:40.5]} 31. Kf2 {[%clk 0:00:24.4]} 31... Re7 {[%clk 0:00:39.5]} 32.
Kf3 {[%clk 0:00:22.8]} 32... Kc4 {[%clk 0:00:38.8]} 33. g4 {[%clk 0:00:19.3]}
33... b5 {[%clk 0:00:38]} 34. axb5 {[%clk 0:00:18.9]} 34... axb5 {[%clk
0:00:38.9]} 35. h4 {[%clk 0:00:19]} 35... b4 {[%clk 0:00:34.6]} 36. g5 {[%clk
0:00:17.8]} 36... Ra7 {[%clk 0:00:32.5]} 37. Rb2 {[%clk 0:00:12.9]} 37... g6
{[%clk 0:00:20.1]} 38. Ke4 {[%clk 0:00:12.4]} 38... Ra4 {[%clk 0:00:12.6]} 39.
Rc2+ {[%clk 0:00:11.1]} 39... Kb5 {[%clk 0:00:12.6]} 40. Kd5 {[%clk 0:00:10.5]}
40... Ra7 {[%clk 0:00:10]} 41. Kd6 {[%clk 0:00:06.5]} 41... Ka4 {[%clk
0:00:07.9]} 42. Kc5 {[%clk 0:00:05.3]} 42... Rc7+ {[%clk 0:00:06.8]} 43. Kb6
{[%clk 0:00:04]} 43... Rxc2 {[%clk 0:00:07.7]} 44. Kb7 {[%clk 0:00:02]} 44...
Rxa2 {[%clk 0:00:07.7]} 45. Kc7 {[%clk 0:00:01.7]} 45... b3 {[%clk 0:00:08.6]}
0-1